Cogmind - Beta 13 @@@ ROGUE MODE // 2024.04.07 @ 00:29:07 Player: michaelman Result: Destroyed by YI-UF0 with YI-UF0's Doublenader Performance ------------- Evolutions (0) 0 Regions Visited (2) 400 Robots Destroyed (7) 35 Value Destroyed (261) 261 Prototype IDs (0) 0 Alien Tech Used (0) 0 Bonus (0) 0 TOTAL SCORE: 696 Bonus ------- None Cogmind --------- Core Integrity 0/250 Matter 276/300 Energy 250/250 System Corruption 0% Temperature Cool (0) Movement Core (200) Ox3 Location -10/Mines Parts ------- > --- POWER (1) -------- Ion Engine > --- PROPULSION (2) --- (None) > --- UTILITY (2) ------ Small Storage Unit > --- WEAPON (2) ------- Assault Rifle > --- INVENTORY (8) ---- Light Ion Engine Grenade Launcher Peak State ------------ > --- POWER ------------ (None) > --- PROPULSION ------- Aluminum Leg Aluminum Leg > --- UTILITY ---------- Small Storage Unit > --- WEAPON ----------- EM Pulse Gun EM Pulse Gun > --- INVENTORY -------- Ion Engine Light Ion Engine Assault Rifle [Rating: 5] Favorites ----------- Power Ion Engine Engine Ion Engine Propulsion Aluminum Leg Leg Aluminum Leg Utility Small Storage Unit Storage Small Storage Unit Weapon Assault Rifle Energy Gun EM Pulse Gun Ballistic Gun Assault Rifle Launcher Grenade Launcher Build | -11 -10 -10 ------- Run | Yrd Mat Min Slots Evolved . | . . . Power . | . . . Propulsion . | . . . Utility . | . . . Weapon . | . . . Parts Attached 10 | 5 3 2 Power 1 | . . 1 Engine 1 | . . 1 Core . | . . . Reactor . | . . . Propulsion 2 | 2 . . Treads . | . . . Leg 2 | 2 . . Wheel . | . . . Hover . | . . . Flight . | . . . Utility 1 | 1 . . Device . | . . . Storage 1 | 1 . . Processor . | . . . Hackware . | . . . Protection . | . . . Artifact . | . . . Weapon 6 | 2 3 1 Energy Gun 3 | 2 . 1 Energy Cannon . | . . . Ballistic Gun 2 | . 2 . Ballistic Cannon . | . . . Launcher 1 | . 1 . Special Weapon . | . . . Impact Weapon . | . . . Slashing Weapon . | . . . Piercing Weapon . | . . . Special Melee Weapon . | . . . Unidentified Prototypes . | . . . Parts Lost 5 | . 1 4 Power . | . . . Propulsion 2 | . . 2 Utility . | . . . Weapon 3 | . 1 2 Highest Loss Streak 3 | . 1 3 To Critical Strikes . | . . . Average Slot Usage (%) 64 | . 69 53 Engine 2 | . . 8 Leg 21 | . 28 5 Storage 14 | . 14 14 Energy Gun 9 | . 10 8 Ballistic Gun 14 | . 14 16 Launcher 1 | . 1 . Naked Turns . | . . . Heaviest Build 13 | 9 10 13 Greatest Support 20 | 20 20 20 Greatest Overweight (x) 4 | . . 4 Average Overweight (x) . | . . 2 Largest Inventory Capacity 8 | 8 8 8 Average Capacity 7 | 6 8 8 Most Carried 6 | 5 6 4 Average Carried 3 | 3 3 2 Final Capacity 8 | 8 8 8 Final Carried 3 | 3 2 2 Class Distribution -------------------- 100% | Mutant Dominant Class ---------------- Mutant | -10/Materials Mutant | -10/Mines Resources | -11 -10 -10 ----------- Run | Yrd Mat Min Matter Collected 393 | 154 200 39 Remotely . | . . . Salvage Created 257 | . 209 48 Parts 7 | . 7 . Haulers Intercepted . | . . . Recyclers Shooed . | . . . Parts Field Recycled . | . . . Retrieved Matter . | . . . Parts Self-Destructed . | . . . Prevented . | . . . Kills | -11 -10 -10 ------- Run | Yrd Mat Min Combat Hostiles Destroyed 7 | . 5 2 Guns 5 | . 3 2 AOE 2 | . 2 . Classes Destroyed 3 | . 2 1 Worker 1 | . 1 . Grunt 6 | . 5 1 Assembled 1 | . . 1 Best Kill Streak 4 | . 4 1 Combat Bots Only 3 | . 3 1 Max Kills in Single Turn 1 | . 1 1 Gunslinging . | . . . Exploded 1 | . 1 . Melee . | . . . Uniques/NPCs Destroyed . | . . . Combat | -11 -10 -10 -------- Run | Yrd Mat Min Hostile Shots Fired 71 | . 50 21 Missed 21 | . 20 1 Damage Taken 843 | . 443 400 Core 258 | . 90 168 Absorbed by Shields . | . . . Core Remaining (%) 100 | 100 . . Volleys Fired 41 | . 31 10 Largest 2 | . 2 2 Hottest 80 | . 80 60 Shots Fired 61 | . 48 13 Gun 57 | . 44 13 Cannon . | . . . Launcher 4 | . 4 . Special . | . . . Kinetic 34 | . 23 11 Thermal 2 | . . 2 Explosive 4 | . 4 . Electromagnetic 21 | . 21 . Robot Hit Streak 7 | . 7 3 Robot Miss Streak 5 | . 5 2 Penetration Max . | . . . Secondary Targets . | . . . Shots Hit Robots 35 | . 27 8 Core Hits 19 | . 14 5 Critical Kills . | . . . Critical Parts Destroyed . | . . . Critical Strikes 1 | . 1 . Corrupt 1 | . 1 . Melee Attacks . | . . . Impact . | . . . Slashing . | . . . Piercing . | . . . Sneak Attacks . | . . . Combat Hostiles . | . . . Follow-up Attacks . | . . . Damage Inflicted 731 | . 607 124 Guns 444 | . 320 124 Cannons . | . . . Explosions 287 | . 287 . Melee . | . . . Ramming . | . . . Kinetic 256 | . 142 114 Thermal 64 | . 54 10 Explosive 233 | . 233 . Electromagnetic 178 | . 178 . Impact . | . . . Slashing . | . . . Piercing . | . . . Highest Corruption . | . . . Average Corruption . | . . . Corruption Purged . | . . . Corruption Blocked . | . . . Overload Shots . | . . . Overflow Damage 42 | . 42 . Projectiles . | . . . Explosions 42 | . 42 . Melee . | . . . Knockbacks . | . . . Impact . | . . . Kinetic . | . . . Secondary . | . . . Self-Inflicted Damage 59 | . 59 . Shots 1 | . 1 . Rammed . | . . . Targets Rammed . | . . . Kicked . | . . . Crushed . | . . . Highest Temperature 39 | . 39 10 Average Temperature 12 | . 12 10 Received Heat Transfer 327 | . 213 114 Siege Activations . | . . . Robots Corrupted . | . . . Combat Hostiles . | . . . Parts Fried 1 | . 1 . Impact Corruptions . | . . . Robots Melted . | . . . Combat Hostiles . | . . . Parts Melted . | . . . Heat Transferred 75 | . 50 25 Parts Sabotaged . | . . . Parts Stolen . | . . . Parts Stripped . | . . . Power Chain Reactions . | . . . Alert | -11 -10 -10 ------- Run | Yrd Mat Min Peak Influence 322 | . 322 125 Initial 125 | . . 125 Average 150 | . 187 122 Maximum Alert Level 1 | . 1 . Low Security (%) 68 | 100 48 100 Level 1 31 | . 51 . Level 2 . | . . . Level 3 . | . . . Level 4 . | . . . Level 5 . | . . . High Security . | . . . Max Security . | . . . Squads Dispatched 2 | . 2 . Investigation 1 | . 1 . Extermination . | . . . Reinforcement 1 | . 1 . Assault . | . . . Garrison . | . . . Intercept . | . . . Searches Triggered . | . . . Construction Impeded . | . . . Haulers Reinforced . | . . . Active Scanning Responses . | . . . Cargo Convoy Interrupts . | . . . Stealth | -11 -10 -10 --------- Run | Yrd Mat Min Distress Signals 1 | . 1 . Communications Jammed . | . . . Distress Signals . | . . . Times Spotted 31 | . 17 14 Peak Tracking Total 7 | . 3 7 Tactical Retreats 4 | . 4 . Traps | -11 -10 -10 ------- Run | Yrd Mat Min Traps Triggered 1 | . 1 . Indirectly . | . . . Trap Hack Attempts . | . . . Triggered . | . . . Disarmed . | . . . Reprogrammed . | . . . Reused . | . . . Traps Extracted . | . . . Installed . | . . . Triggered . | . . . Machines | -11 -10 -10 ---------- Run | Yrd Mat Min Machines Disabled 3 | . 3 . Max in Single Turn 2 | . 2 . Machines Repaired . | . . . Machines Dismantled . | . . . Machines Sabotaged . | . . . Overloaded Fab Kills . | . . . Hacking | -11 -10 -10 --------- Run | Yrd Mat Min Machines Accessed . | . . . Terminals . | . . . Fabricators . | . . . Repair Stations . | . . . Recycling Units . | . . . Scanalyzers . | . . . Garrison Access . | . . . Total Hacks . | . . . Successful . | . . . Failed . | . . . Catastrophic . | . . . Database Lockouts . | . . . Manual . | . . . Terminals . | . . . Fabricators . | . . . Repair Stations . | . . . Recycling Units . | . . . Scanalyzers . | . . . Garrison Access . | . . . Terminal Hacks . | . . . Fabricator Hacks . | . . . Repair Station Hacks . | . . . Recycling Unit Hacks . | . . . Scanalyzer . | . . . Garrison Access Hacks . | . . . Unauthorized Hacks . | . . . Terminals . | . . . Fabricators . | . . . Repair Stations . | . . . Recycling Units . | . . . Scanalyzers . | . . . Garrison Access . | . . . Data Cores Recovered . | . . . Used . | . . . Hacking Detections . | . . . Full Trace Events . | . . . Feedback Events . | . . . Feedback Blocked . | . . . Robot Schematics Acquired . | . . . Robots Built . | . . . Authchips . | . . . Time . | . . . Total Robot Build Rating . | . . . Part Schematics Acquired . | . . . Parts Built . | . . . Authchips . | . . . Time . | . . . Total Part Build Rating . | . . . Parts Repaired . | . . . Time . | . . . Parts Recycled . | . . . Recycled Matter . | . . . Retrieved Matter . | . . . Retrieved Components . | . . . Parts Scanalyzed . | . . . Part Schematics Acquired . | . . . Parts Damaged . | . . . Bothacking | -11 -10 -10 ------------ Run | Yrd Mat Min Used RIF Installer . | . . . Robots Hacked . | . . . Non-combat . | . . . Combat . | . . . Robot Hacks Applied . | . . . Relay Couplers Released . | . . . Fabnet Peak Effective % . | . . . Robots Rewired . | . . . Allies Hacked . | . . . Hacks Repelled . | . . . Allies | -11 -10 -10 -------- Run | Yrd Mat Min Total Allies . | . . . Largest Group . | . . . Highest-Rated Group . | . . . Highest-Rated Ally . | . . . Total Orders . | . . . Ally Attacks . | . . . Total Damage . | . . . Kills . | . . . Allies Corrupted . | . . . Allies Melted . | . . . Intel | -11 -10 -10 ------- Run | Yrd Mat Min Robot Analysis Total . | . . . Derelict Logs Recovered . | . . . Drone Launches . | . . . Drone Recoveries . | . . . Exploration | -11 -10 -10 ------------- Run | Yrd Mat Min Turns Passed 643 | 63 398 182 Spaces Moved 372 | 50 239 83 Core 67 | 14 . 53 Treads . | . . . Legs 305 | 36 239 30 Wheels . | . . . Hover . | . . . Flight . | . . . Fastest Speed 50 | 50 120 120 Average Speed 132 | 100 120 186 Slowest Speed 250 | 120 120 250 Overloaded Moves . | . . . Propulsion Burnouts . | . . . Robots Hopped . | . . . Cave-ins Triggered . | . . . Exploration Rate (%) 18 | 5 38 13 Regions Visited 2 Branch Regions 1 Pre-discovered Areas . | . . . Known Exits Taken . | . . . Unknown Exits Taken 2 | 1 1 . Scrap Searched . | . . . Spaces Dug . | . . . Terrain Destroyed 41 | . 41 . Melee . | . . . Projectile . | . . . AOE 41 | . 41 . Terrain Rammed . | . . . Walls Destroyed . | . . . Machines Disabled . | . . . Actions | -11 -10 -10 --------- Run | Yrd Mat Min Total 462 | 62 303 97 Wait 24 | 1 23 . Move 370 | 49 238 83 Hop . | . . . Pick Up 13 | 7 4 2 Fast Attach 1 | 1 . . Attach 7 | 4 1 2 Detach . | . . . Swap 2 | . 2 . Drop 4 | . 4 . Fire 41 | . 31 10 Melee . | . . . Ram . | . . . Kick . | . . . Crush . | . . . Escape Stasis . | . . . Rewire . | . . . Trap . | . . . Miscellaneous . | . . . Route ------- -11/Scrapyard -10/Materials -10/Mines History --------- Turn | Location | Event 13 | -11/Scrapyard | Discovered new exit (range 15) 64 | -11/Scrapyard | Entered Materials 303 | -10/Materials | Build established: Mutant 447 | -10/Materials | Discovered new exit (range 12) 462 | -10/Materials | Entered Mines 466 | -10/Mines | YI-UF0 nonchalantly dropped a Grenade Launcher on the ground 507 | -10/Mines | Core integrity fell below 50% 539 | -10/Mines | Lost 3 parts (2n1w) 624 | -10/Mines | Assembled infested the area 637 | -10/Mines | Core integrity fell below 20% 644 | -10/Mines | Destroyed by YI-UF0 with YI-UF0's Doublenader Last Messages --------------- squad. 00625_ K-01 Serf destroyed. 00626_ YI-UF0 mumbles something. 00631_ as-94445 destroyed. 00631_ YI-UF0: "BWOOM!" 00631_ as-75595 destroyed. 00636_ as-34511 destroyed. 00636_ as-98780 destroyed. 00638_ as-06317 destroyed. 00638_ YI-UF0: "BOOSH!" 00638_ as-98521 destroyed. 00638_ as-50241 destroyed. 00638_ as-27080 destroyed. 00638_ as-66449 destroyed. 00639_ YI-UF0: "Whaaaaaaaa!" 00639_ as-49560 destroyed. 00640_ YI-UF0: "BADABOOM!" 00640_ T-07 Excavator destroyed. 00641_ as-42324 powers down. 00642_ Sml. Laser destroyed. Map ----- +----------------------------------------------------+ | ???????????????????????????????????????????? | | ???????????????????????????????????????????? | | ???????????????????????????????????????????? | | ???????????????????????????????????????????? | | ???????????????????????????????????????????? | | ???????????????????????????????????????????? | | ???????????????????????????????????????????? | | ???????????????????????????????????????????? | | ???????????????????????????????????????????? | | ?????????????#?????????????????????????????? | | ?????????? #????????????????????????????? | | ???????? ! ##??????????????????????????? | | ????????? % #?????????????????????????? | | ?????????? % % #????????????????????????? | | ?????????? ????????????????????????? | | ??????????# ????????????????????????? | | ??????????# ????????????????????????? | | ??????????# #????????????????????????? | | ??????????? a ????????????????????????? | | ????????????# #???????????????????????? | | ????????????# r????????????????????????? | | ????????????? ????????????????????????? | | ?????????????## ###?????????????????????? | | ?????????????# ##????????????????????? | | ????????####### #????????????????????? | | ??????#### ### % @ #?####???????????????? | | ??????# g # ##??????????????? | | ??????# #??????????????? | | ?????## %##### ##??????????????? | | ?????# #??### #???????????????? | | ????## #???# * #???????????????? | | ????# ##???# #??????????????? | | ????## ##???# #### #??????????????? | | ?????## ##### #???## #??????????????? | | ??????## ### #????? #??????????????? | | ???????## ### ##?????? #?????????????? | | ????????## #?# #???????? ?????????????? | | ?????????## #### ##??????????????????????? | | ??????????####?# #??????????????????????? | | ???????????????# #??????????????????????? | | ???????????????# #??????????????????????? | | ???????????????## ##??????????????????????? | | ????????????????####???????????????????????? | | ???????????????????????????????????????????? | | ???????????????????????????????????????????? | | ???????????????????????????????????????????? | | ???????????????????????????????????????????? | | ???????????????????????????????????????????? | | ???????????????????????????????????????????? | | | +----------------------------------------------------+ Best States ------------- Heat Dissipation 25 Energy Generation 10 Energy Capacity 250 Matter Stores 300 Matter Capacity 300 Sight Range 16 Terrain Scan Density 10 Evasion (%) 55 Item Schematics ----------------- None Robot Schematics ------------------ None Fabricated ------------ Nothing Alien Tech Used ----------------- None Achievements -------------- None Challenges ------------ None Game ------ Seed ExplosiveThermalGun Manual? 0 Play Time 00:09:26 Cumulative 5.0 hours Start 2024.04.07 @ 00:21:24 End 2024.04.07 @ 00:29:07 Sessions 1 Manual Loads 0 Difficulty Rogue Special Mode None Game No. 11 Rogue 11 Adventurer 0 Explorer 0 Win Type - Total 0 Types 0/0/0/0/0/0/0/0/0 Lore% 3 Gallery% 7 Achievement% 11 Wizard Run 0 Options --------- Layout 0 ASCII 0 Keyboard 0 Movement Mouse Keybinds 0 Fullscreen 1 Font 18/SmallcapsGlow Map View 38x25 Zoom Use 89% Tactical HUD 1 Map Filters NONE Filters NONE Steam 1 RUN: a092f5ed-e866-4b5b-90aa-974b7c5d3ca6